bitfinex/quotes_ETHUSD_20250808
["timestamp","ask_amount","ask_price","bid_price","bid_amount"]
[1754685309919,1e-08,4053.3,4053.2,12.86711709]
[1754685310160,1e-08,4053.3,4053.2,13.34331709]
[1754685311056,1e-08,4053.3,4053.2,13.89331709]
[1754685311225,1e-08,4053.3,4053.2,14.35631709]
[1754685312250,1e-08,4053.3,4053.2,13.41711709]
[1754685313552,1e-08,4053.3,4053.2,13.89331709]
[1754685314255,1e-08,4053.3,4053.2,13.41711709]
[1754685314672,1e-08,4053.3,4053.2,13.88481709]
[1754685315778,1e-08,4053.3,4053.2,13.33481709]
[1754685316079,0.46060001,4053.3,4053.2,13.32381709]
[1754685316243,0.92830001,4053.3,4053.2,13.32381709]
[1754685316643,0.46060001,4053.3,4053.2,12.85611709]
[1754685316973,0.92830001,4053.3,4053.2,12.85611709]
[1754685317862,1e-08,4053.3,4053.2,12.85611709]
[1754685318076,0.46060001,4053.3,4053.2,12.85611709]
[1754685318279,0.92830001,4053.3,4053.2,12.85611709]
[1754685320144,0.46060001,4053.3,4053.2,12.85611709]
[1754685322181,1e-08,4053.3,4053.2,12.85611709]
[1754685323476,0.92830001,4053.3,4053.2,12.85611709]
[1754685324002,0.92830001,4053.3,4053.2,9.07911709]
[1754685324184,0.92830001,4053.3,4053.2,12.85411709]
[1754685325192,0.92830001,4053.3,4053.2,10.38693067]
[1754685325392,0.92830001,4053.3,4053.2,8.5461171]
[1754685325590,0.92830001,4053.3,4053.2,6.07893068]
[1754685326595,0.92830001,4053.3,4053.2,8.5461171]
[1754685326796,0.92830001,4053.3,4053.2,6.07893068]
[1754685328491,0.92830001,4053.3,4053.2,3.8982]
[1754685328492,1.2678249,4053.3,4053.2,3.8982]
[1754685328796,0.92830001,4053.3,4053.2,3.775]
[1754685329096,3.39542556,4053.3,4053.2,3.775]
[1754685329298,0.92830001,4053.3,4053.2,3.775]
[1754685333371,2.46720194,4053.2,4053.1,3.776]
[1754685333571,3.74536045,4053.2,4053.1,3.777]
[1754685334216,1.27815851,4053.2,4053.1,3.777]
[1754685334894,1.27815851,4053.2,4053.1,0.001]
[1754685338106,0.9263,4053.2,4053.1,0.001]
[1754685344418,0.4337,4053.2,4053.1,3.777]
[1754685344722,1e-08,4053.3,4053.1,3.777]
[1754685345024,1e-08,4053.3,4053.1,6.24424075]
[1754685345308,0.43370001,4053.3,4053.1,3.777]
[1754685345512,0.4337,4053.2,4053.1,3.777]
[1754685345824,0.9263,4053.2,4053.1,0.001]
[1754685346008,1.2779571,4053.2,4053.1,0.001]
[1754685346580,0.7853571,4053.2,4053.1,0.001]
[1754685346785,1e-08,4053.3,4053.1,0.001]
[1754685347291,1e-08,4053.3,4053.1,2.46822676]
[1754685347602,0.4337,4053.2,4053.1,2.46822676]
[1754685347782,0.9263,4053.2,4053.1,0.001]
[1754685348413,0.9263,4053.2,4053.1,2.46824729]
[1754685348779,0.9263,4053.2,4053.1,0.001]
[1754685349816,1.27795223,4053.2,4053.1,0.001]
[1754685351681,0.4337,4053.2,4053.1,0.001]
[1754685351884,1e-08,4053.3,4053.2,2.46718642]
[1754685352111,1e-08,4053.3,4053.2,6.24318642]
[1754685357621,1e-08,4053.3,4053.1,0.1242]
[1754685357806,0.9117,4053.2,4053.1,2.46824729]
[1754685358005,1e-08,4053.3,4053.1,2.46824729]
[1754685358319,1e-08,4053.3,4053.2,2.46718642]
[1754685359083,1e-08,4053.3,4053.1,6.24322324]
[1754685359284,0.4474,4053.2,4053.1,3.776]
[1754685359522,1e-08,4053.3,4053.1,3.776]
[1754685359908,0.4474,4053.2,4053.1,0.001]
[1754685360430,0.9117,4053.2,4053.1,0.001]
[1754685360806,3.72908104,4053.2,4053.1,0.001]
[1754685361532,4.27908104,4053.2,4053.1,0.001]
[1754685363006,3.0174908,4052.7,4052.6,0.001]
[1754685363313,16.62411264,4052.7,4052.6,0.001]
[1754685363523,17.65901264,4052.7,4052.6,0.001]
[1754685363723,19.67165528,4052.7,4052.6,0.001]
[1754685363909,20.20298594,4052.7,4052.6,0.001]
[1754685364214,23.20298594,4052.7,4052.6,1e-08]
[1754685368238,27.20298594,4052.7,4052.6,1e-08]
[1754685369805,27.20132821,4052.7,4052.6,1e-08]
[1754685370041,26.67165528,4052.7,4052.6,1e-08]
[1754685370238,27.20133926,4052.7,4052.6,1e-08]
[1754685370540,8.25613344,4052.7,4052.6,1e-08]
[1754685370740,6.3666908,4052.7,4052.6,1e-08]
[1754685370932,6.9166908,4052.7,4052.6,1e-08]
[1754685371820,6.3666908,4052.7,4052.6,1e-08]
[1754685372146,2.5906908,4052.7,4052.6,1e-08]
[1754685372306,6.3666908,4052.7,4052.6,0.91550001]
[1754685373622,0.1232,4052.7,4052.6,1e-08]
[1754685373821,3.8992,4052.7,4052.6,0.91550001]
[1754685377563,3.8992,4052.7,4052.6,0.46960001]
[1754685377712,3.8992,4052.7,4052.6,1e-08]
[1754685378456,3.8992,4052.7,4052.6,0.91550001]
[1754685379700,6.3666908,4052.7,4052.6,1e-08]
[1754685380804,3.8992,4052.7,4052.6,1e-08]
[1754685381008,6.3666908,4052.7,4052.6,1e-08]
[1754685381809,7.250093,4052.7,4052.6,1e-08]
[1754685382004,8.161793,4052.7,4052.6,1e-08]
[1754685382814,11.711793,4052.7,4052.6,1e-08]
[1754685386536,7.024093,4052.7,4052.6,1e-08]
[1754685386827,10.800093,4052.7,4052.6,1e-08]
[1754685387311,6.3666908,4052.7,4052.6,1e-08]
[1754685389338,6.8390908,4052.7,4052.6,1e-08]
[1754685389917,6.3666908,4052.7,4052.6,1e-08]
[1754685390712,16.19831264,4052.7,4052.6,1e-08]
[1754685390928,17.16701264,4052.7,4052.6,1e-08]
[1754685391299,19.13045168,4052.7,4052.6,1e-08]
[1754685391597,18.63415168,4052.7,4052.6,1e-08]
[1754685392232,18.16175168,4052.7,4052.6,1e-08]
[1754685392826,18.63415168,4052.7,4052.6,1e-08]
[1754685393129,19.13045168,4052.7,4052.6,1e-08]
[1754685393834,22.68045168,4052.7,4052.6,1e-08]
[1754685394225,23.21127932,4052.7,4052.6,1e-08]
[1754685397541,22.71497932,4052.7,4052.6,1e-08]
[1754685397749,23.21137741,4052.7,4052.6,1e-08]
[1754685397957,23.21337741,4052.7,4052.6,1e-08]
[1754685402562,23.31222941,4052.7,4052.6,1e-08]
[1754685403966,8.73590757,4052.7,4052.6,1e-08]
[1754685404183,12.41205557,4052.7,4052.6,1e-08]
[1754685412081,12.88445557,4052.7,4052.6,1e-08]
[1754685412247,13.38075557,4052.7,4052.6,1e-08]
[1754685412448,9.10945557,4052.7,4052.6,1e-08]
[1754685412659,12.41205557,4052.7,4052.6,1e-08]
[1754685413698,8.63705557,4052.7,4052.6,1e-08]
[1754685413857,12.41205557,4052.7,4052.6,1e-08]
[1754685414494,0.65612573,4052.7,4052.6,1e-08]
[1754685414781,6.89861653,4052.7,4052.6,0.89300001]
[1754685415162,6.3676908,4052.7,4052.6,0.89300001]
[1754685417260,6.3676908,4052.7,4052.6,0.45060001]
[1754685417469,7.84399696,4052.7,4052.6,1e-08]
[1754685417668,8.3757252,4052.7,4052.6,1e-08]
[1754685417884,8.9257252,4052.7,4052.6,1e-08]
[1754685418050,9.8865252,4052.7,4052.6,1e-08]
[1754685419484,9.88655064,4052.7,4052.6,1e-08]
[1754685421160,10.55124275,4052.7,4052.6,1e-08]
[1754685421360,10.05554275,4052.7,4052.6,1e-08]
[1754685421599,9.39085064,4052.7,4052.6,1e-08]
[1754685421971,9.88655064,4052.7,4052.6,1e-08]
[1754685422490,8.92575064,4052.7,4052.6,1e-08]
[1754685424294,8.37575064,4052.7,4052.6,0.89300001]
[1754685424466,6.89944448,4052.7,4052.6,0.89300001]
[1754685425668,6.89844448,4052.7,4052.6,0.89300001]
[1754685428506,6.3666908,4052.7,4052.6,0.89300001]
[1754685430896,0.002,4052.7,4052.6,0.89300001]
[1754685431100,3.8992,4052.7,4052.6,0.89300001]
[1754685431967,6.3666908,4052.7,4052.6,1e-08]
[1754685435715,7.56981665,4052.7,4052.6,1e-08]
[1754685435890,8.03491665,4052.7,4052.6,1e-08]
[1754685436292,7.56981665,4052.7,4052.6,1e-08]
[1754685441109,8.03491665,4052.7,4052.6,1e-08]
[1754685441316,7.56981665,4052.7,4052.6,1e-08]
[1754685441824,9.61239429,4052.7,4052.6,1e-08]
[1754685442499,10.27701243,4052.7,4052.6,1e-08]
[1754685443117,9.75086532,4052.7,4052.6,1e-08]
[1754685443492,10.2769293,4052.7,4052.6,1e-08]
[1754685443692,9.61239429,4052.7,4052.6,1e-08]
[1754685443894,9.75084477,4052.7,4052.6,1e-08]
[1754685445728,4.89284477,4052.7,4052.6,1e-08]
[1754685445935,4.48426713,4052.7,4052.6,1e-08]
[1754685446138,6.3666908,4052.7,4052.6,1e-08]
[1754685446294,6.89846844,4052.7,4052.6,0.93310001]
[1754685446829,6.3666908,4052.7,4052.6,0.93310001]
[1754685447030,6.89841692,4052.7,4052.6,0.93310001]
[1754685447438,6.89841692,4052.7,4052.6,1e-08]
[1754685447594,7.83499694,4052.7,4052.6,1e-08]
[1754685448624,0.1252,4052.7,4052.6,0.93310001]
[1754685448799,3.8992,4052.7,4052.6,0.93310001]
[1754685448998,6.3666908,4052.7,4052.6,0.93310001]
[1754685450349,6.3666908,4052.7,4052.6,1e-08]
[1754685452312,3.8982,4052.7,4052.6,0.93310001]
[1754685452808,6.3656908,4052.7,4052.6,0.93310001]
[1754685456133,6.3656908,4052.7,4052.6,0.49260001]
[1754685456370,6.3656908,4052.7,4052.6,1e-08]
[1754685463160,8.22998698,4052.7,4052.6,1e-08]
[1754685463500,9.31205919,4052.7,4052.6,1e-08]
[1754685464179,6.3656908,4052.7,4052.6,1e-08]
[1754685464484,0.002,4052.7,4052.6,6.5238517]
[1754685464705,0.002,4053.2,4052.7,3.0]
[1754685464848,0.002,4053.2,4053.1,2.46724729]
[1754685465049,0.002,4053.2,4053.1,5.59044729]
[1754685465275,0.002,4053.2,4053.1,6.52354729]
[1754685468966,0.002,4053.2,4053.1,6.40034729]
[1754685475302,0.002,4053.2,4053.1,10.70834728]
[1754685478004,1e-08,4053.3,4053.2,5.46718642]
[1754685478308,1e-08,4053.3,4053.2,21.20627041]
[1754685478708,1e-08,4053.3,4053.2,18.18413941]
[1754685479098,1e-08,4053.3,4053.2,17.23313941]
[1754685479311,1e-08,4053.3,4053.2,16.86183041]
[1754685479609,1e-08,4053.3,4053.2,16.09015341]
[1754685479812,1e-08,4053.3,4053.2,10.92845341]
[1754685480520,1e-08,4053.3,4053.2,13.07145341]
[1754685481681,1e-08,4053.3,4053.2,16.84245341]
[1754685484236,1e-08,4053.3,4053.2,14.69945341]
[1754685487518,1e-08,4053.3,4053.2,9.99715341]
[1754685487814,1e-08,4053.3,4053.2,13.76815341]
[1754685488805,1e-08,4053.3,4053.2,23.59977525]
[1754685489952,1e-08,4053.3,4053.2,19.29177526]
[1754685495150,1e-08,4053.3,4053.2,9.36138642]
[1754685495351,0.94710001,4053.3,4053.2,9.36138642]
[1754685497549,0.47120001,4053.3,4053.2,9.36138642]
[1754685498439,1e-08,4053.3,4053.2,9.36138642]
[1754685498641,0.94710001,4053.3,4053.2,9.36138642]
[1754685499458,0.94710001,4053.3,4053.2,9.36038642]
[1754685500546,0.47120001,4053.3,4053.2,9.36038642]
[1754685500952,0.94710001,4053.3,4053.2,9.36038642]
[1754685502152,0.47120001,4053.3,4053.2,9.36038642]
[1754685503201,1e-08,4053.3,4053.2,9.36038642]
[1754685503355,0.94710001,4053.3,4053.2,3.1232]
[1754685504088,0.94710001,4053.3,4053.2,5.59038642]
[1754685504288,0.94710001,4053.3,4053.2,3.1232]
[1754685505271,0.94710001,4053.3,4053.2,0.1232]
[1754685508619,1.28871133,4053.3,4053.2,0.1232]
[1754685509082,1.28871133,4053.3,4052.9,0.1232]
[1754685509289,0.8939,4053.2,4052.9,0.1232]
[1754685509706,0.8939,4053.1,4052.9,0.1232]
[1754685510019,0.8939,4053.0,4052.9,0.1232]
[1754685511588,0.4433,4053.0,4052.9,0.1232]
[1754685513910,0.4433,4053.0,4052.9,2.59056904]
[1754685514219,0.4433,4053.2,4052.9,2.59056904]
[1754685514422,0.4433,4053.1,4052.9,0.1232]
[1754685515045,0.4433,4053.1,4052.9,2.59055849]
[1754685515352,1e-08,4053.3,4053.0,2.4672981]
[1754685515719,0.44330001,4053.3,4053.0,2.4672981]
[1754685515919,0.4433,4053.2,4052.9,3.8932]
[1754685516326,0.4433,4053.2,4052.9,6.36055492]
[1754685517755,0.4433,4053.2,4052.9,2.59055492]
[1754685518146,0.4433,4053.1,4052.9,2.59055492]
[1754685518843,0.45060001,4053.3,4052.9,2.59055492]
[1754685519357,0.4433,4053.2,4052.9,2.59055492]
[1754685519947,0.4433,4053.2,4052.9,0.1232]
[1754685520154,0.4433,4053.2,4052.9,2.59056372]
[1754685520554,0.4433,4053.2,4052.9,0.1232]
[1754685520756,0.4433,4053.2,4053.0,2.46727089]
[1754685521829,0.4433,4053.2,4052.9,2.59055333]
[1754685522262,0.4433,4053.2,4052.9,0.1232]
[1754685522474,0.4433,4053.1,4052.9,2.5905646]
[1754685523890,0.4433,4053.1,4052.9,0.1232]
[1754685524437,0.45060001,4053.3,4052.9,2.59056714]
[1754685524644,0.4433,4053.0,4052.9,2.59056714]
[1754685524881,0.4433,4053.0,4052.9,0.1232]
[1754685525387,0.4506,4053.2,4052.9,2.59056904]
[1754685525547,1e-08,4053.3,4052.9,2.59156904]
[1754685525748,0.4433,4053.2,4052.9,2.59156904]
[1754685525973,0.4453,4053.2,4053.0,2.4673076]
[1754685526675,0.002,4053.2,4053.0,2.4673076]
[1754685527544,0.002,4053.2,4053.1,2.46724729]
[1754685528445,0.002,4053.2,4053.1,3.37444729]
[1754685529179,0.002,4053.2,4053.1,10.14444729]
[1754685529771,0.002,4053.2,4053.1,9.23724729]
[1754685529960,0.002,4053.2,4053.1,5.46724729]
[1754685530492,0.4453,4053.2,4053.1,3.0]
[1754685530861,0.8959,4053.2,4053.1,3.0]
[1754685531092,0.4453,4053.2,4053.1,3.0]
[1754685531661,0.4453,4053.2,4053.1,5.46724729]
[1754685532791,0.4453,4053.2,4053.1,3.0]
[1754685534564,0.9161,4053.2,4053.1,3.0]
[1754685535069,0.4453,4053.2,4053.1,3.0]
[1754685539710,0.4453,4053.2,4052.9,0.1242]
[1754685539711,1.78321739,4053.2,4052.9,0.001]
[1754685539915,2.4672955,4053.1,4052.9,0.001]
[1754685540115,3.769,4053.0,4052.9,0.001]
[1754685540538,4.241,4053.0,4052.9,0.001]
[1754685541017,4.7118,4053.0,4052.9,0.001]
[1754685541810,7.17910816,4053.0,4052.9,0.001]
[1754685541980,7.75578758,4053.0,4052.9,0.001]
[1754685542306,8.22778758,4053.0,4052.9,0.001]
[1754685544486,8.75940018,4053.0,4052.9,0.001]
[1754685546840,8.75873214,4053.0,4052.9,0.001]
[1754685549320,9.30873214,4053.0,4052.9,0.001]
[1754685549722,12.84911264,4052.7,4052.6,1e-08]
[1754685550047,19.14883857,4052.7,4052.6,1e-08]
[1754685550342,20.62181622,4052.7,4052.6,1e-08]
[1754685550532,20.09163857,4052.7,4052.6,1e-08]
[1754685551817,10.26001673,4052.7,4052.6,1e-08]
[1754685553558,9.23921673,4052.7,4052.6,1e-08]
[1754685553758,8.76721673,4052.7,4052.6,1e-08]
[1754685553973,6.3596908,4052.7,4052.6,1e-08]
[1754685555363,2.5906908,4052.7,4052.6,1e-08]
[1754685555658,6.3596908,4052.7,4052.6,0.94800001]
[1754685556036,6.3596908,4052.7,4052.6,0.49320001]
[1754685556858,6.3596908,4052.7,4052.6,1e-08]
[1754685557057,7.24240133,4052.7,4052.6,1e-08]
[1754685557729,8.18520133,4052.7,4052.6,1e-08]
[1754685563596,7.71440133,4052.7,4052.6,1e-08]
[1754685565270,8.17670133,4052.7,4052.6,1e-08]
[1754685568481,8.70634093,4052.7,4052.6,1e-08]
[1754685569503,8.24404093,4052.7,4052.6,1e-08]
[1754685570965,7.77204093,4052.7,4052.6,1e-08]
[1754685571162,8.20274093,4052.7,4052.6,1e-08]
[1754685571590,7.77204093,4052.7,4052.6,1e-08]
[1754685571772,8.20274093,4052.7,4052.6,1e-08]
[1754685571974,8.66504093,4052.7,4052.6,1e-08]
[1754685574505,8.20274093,4052.7,4052.6,1e-08]
[1754685574908,7.77204093,4052.7,4052.6,1e-08]
[1754685575978,7.77104093,4052.7,4052.6,1e-08]
[1754685577113,7.77104093,4052.7,4052.6,0.46000001]
[1754685577283,7.77104093,4052.7,4052.6,1e-08]
[1754685579882,7.77104093,4052.7,4052.6,0.46000001]
[1754685580293,7.77104093,4052.7,4052.6,1e-08]
[1754685580495,7.77104093,4052.7,4052.6,0.46000001]
[1754685580699,7.77104093,4052.7,4052.6,1e-08]
[1754685584624,6.8883304,4052.7,4052.6,0.93320001]
[1754685585497,6.8883304,4052.7,4052.6,1e-08]
[1754685588710,6.8873304,4052.7,4052.6,1e-08]
[1754685589235,7.3180304,4052.7,4052.6,1e-08]
[1754685589439,7.7803304,4052.7,4052.6,1e-08]
[1754685589753,8.87125968,4052.7,4052.6,1e-08]
[1754685591426,8.40895968,4052.7,4052.6,1e-08]
[1754685591660,8.87125968,4052.7,4052.6,1e-08]
[1754685596070,8.40895968,4052.7,4052.6,1e-08]
[1754685597580,8.87335968,4052.7,4052.6,1e-08]
[1754685598488,19.91652946,4052.7,4052.6,1e-08]
[1754685600697,0.55,4052.6,4052.2,0.001]
[1754685600852,2.46773437,4052.3,4052.2,0.001]
[1754685601052,6.35793437,4052.3,4052.2,0.001]
[1754685601285,6.88757397,4052.3,4052.2,0.001]
[1754685601457,7.35797397,4052.3,4052.2,0.001]
[1754685601781,9.15229871,4052.3,4052.2,0.001]
[1754685602151,8.68189871,4052.3,4052.2,0.001]
[1754685602745,8.68189871,4052.3,4052.2,0.4692]
[1754685603648,8.68189871,4052.3,4052.2,0.001]
[1754685605430,4.91489871,4052.3,4052.2,0.001]
[1754685605594,6.88657397,4052.3,4052.2,0.9003]
[1754685605791,3.8892,4052.3,4052.2,0.9003]
[1754685605990,0.1232,4052.3,4052.2,0.9003]
[1754685606196,3.8892,4052.3,4052.2,0.9003]
[1754685606627,3.766,4052.3,4052.2,0.9003]
[1754685606835,3.766,4052.3,4052.2,3.49129527]
[1754685607825,3.766,4052.3,4052.2,1.0235]
[1754685608600,0.002,4052.9,4052.2,4.0235]
[1754685608803,0.002,4052.9,4052.7,2.5906908]
[1754685608804,3.766,4052.8,4052.7,2.5906908]
[1754685609215,3.766,4052.8,4052.7,3.4899908]
[1754685609926,3.766,4052.8,4052.7,1.0225]
[1754685611612,3.766,4052.8,4052.7,3.4899908]
[1754685612051,3.766,4052.8,4052.7,1.0225]
[1754685613255,3.766,4052.8,4052.7,0.1232]
[1754685613467,3.766,4052.8,4052.7,1.0225]
[1754685614450,3.768,4052.8,4052.7,1.0225]
[1754685616553,3.8912,4052.8,4052.2,0.1242]
[1754685616716,4.3616,4052.8,4052.2,0.1242]
[1754685617122,6.82908275,4052.8,4052.2,0.1242]
[1754685617551,2.46749469,4052.7,4052.2,0.1242]
[1754685617719,2.46755373,4052.6,4052.2,0.1242]
[1754685617918,3.765,4052.5,4052.2,0.1242]
[1754685618452,3.765,4052.5,4052.2,0.5924]
[1754685618951,3.765,4052.5,4052.3,3.8993]
[1754685619252,3.765,4052.5,4052.4,0.4682]
[1754685621552,3.765,4052.5,4052.3,3.4311]
[1754685622052,3.765,4052.5,4052.3,3.8993]
[1754685622252,3.765,4052.5,4052.3,0.8993]
[1754685622452,3.765,4052.5,4052.2,0.1242]
[1754685623763,3.765,4052.5,4052.2,2.59199447]
[1754685624145,3.765,4052.5,4052.2,0.1242]
[1754685625466,0.4659,4052.4,4052.2,0.1242]
[1754685625962,0.4659,4052.3,4052.2,0.1242]
[1754685626462,6.6985316,4052.5,4052.2,0.1242]
[1754685626647,2.93361478,4052.4,4052.2,0.1242]
[1754685626849,0.4659,4052.4,4052.2,0.1242]
[1754685627052,3.765,4052.5,4052.2,0.1242]
[1754685627358,6.23261843,4052.5,4052.2,0.1242]
[1754685627560,2.46773437,4052.3,4052.2,0.001]
[1754685627862,2.59093437,4052.3,4052.2,0.001]
[1754685628164,3.53403437,4052.3,4052.2,0.001]
[1754685629846,7.29803437,4052.3,4052.2,0.001]
[1754685630048,8.32293285,4052.3,4052.2,0.001]
[1754685632166,3.8872,4052.3,4052.2,0.001]
[1754685632467,3.8872,4052.3,4052.2,16.23071711]
[1754685632468,3.764,4052.3,4052.2,16.23071711]
[1754685632967,3.764,4052.3,4052.2,5.46879527]
[1754685633169,3.764,4052.3,4052.2,6.39909527]
[1754685633338,3.764,4052.3,4052.2,3.9313]
[1754685633538,3.764,4052.3,4052.2,6.39909527]
[1754685635046,0.1252,4052.8,4052.3,2.46771263]
[1754685635249,3.764,4052.7,4052.3,2.46771263]
[1754685635567,3.764,4052.7,4052.4,0.4952]
[1754685636865,3.764,4052.7,4052.3,0.4351]
[1754685637070,6.23153873,4052.7,4052.2,3.001]
[1754685637270,3.764,4052.7,4052.2,3.001]
[1754685637469,3.764,4052.7,4052.2,3.4962]
[1754685638045,3.764,4052.7,4052.2,5.96399167]
[1754685638248,3.764,4052.7,4052.2,3.4962]
[1754685639177,3.764,4052.7,4052.2,5.96399266]
[1754685639348,3.764,4052.7,4052.3,0.4952]
[1754685639553,3.764,4052.7,4052.2,3.4361]
[1754685639554,3.764,4052.7,4052.2,3.001]
[1754685639754,4.2299,4052.7,4052.2,3.001]
[1754685640064,3.764,4052.7,4052.2,5.96395756]
[1754685640259,3.764,4052.7,4052.3,2.46772286]
[1754685640477,3.764,4052.7,4052.2,5.46878314]
[1754685640647,3.764,4052.7,4052.2,3.001]
[1754685640648,0.4659,4052.6,4052.2,3.001]
[1754685641174,2.46756087,4052.6,4052.2,0.001]
[1754685641341,0.4659,4052.6,4052.2,0.001]
[1754685642772,3.764,4052.7,4052.2,0.001]
[1754685643086,2.59093437,4052.3,4052.2,0.001]
[1754685643270,6.35393437,4052.3,4052.2,0.001]
[1754685643474,7.29703437,4052.3,4052.2,0.001]
[1754685644242,4.3521,4052.3,4052.2,0.001]
[1754685644468,0.1232,4052.3,4052.2,0.001]
[1754685644681,3.8862,4052.3,4052.2,0.001]
[1754685648358,5.03407287,4052.3,4052.2,0.001]
[1754685648779,4.56817287,4052.3,4052.2,0.001]
[1754685648976,3.8862,4052.3,4052.2,0.001]
[1754685652500,4.3521,4052.3,4052.2,0.001]
[1754685654702,3.8862,4052.3,4052.2,0.001]
[1754685655368,0.002,4052.8,4052.2,0.001]
[1754685655369,2.92665377,4052.8,4052.2,0.001]
[1754685655709,0.1232,4052.6,4052.2,0.001]
[1754685655879,3.762,4052.5,4052.2,0.001]
[1754685656077,3.762,4052.5,4052.2,2.4687838]
[1754685656301,3.762,4052.5,4052.3,0.4829]
[1754685656604,3.762,4052.5,4052.2,0.001]
[1754685656899,3.762,4052.4,4052.2,0.001]
[1754685657275,3.762,4052.4,4052.2,0.4839]
[1754685658398,3.762,4052.4,4052.2,2.95168116]
[1754685658600,3.762,4052.4,4052.3,2.46773437]
[1754685658900,3.762,4052.4,4052.2,2.95168787]
[1754685659106,3.762,4052.4,4052.2,0.4839]
[1754685659708,3.762,4052.4,4052.2,2.95168973]
[1754685660519,3.762,4052.4,4052.2,0.4839]
[1754685660714,3.762,4052.4,4052.2,0.001]
[1754685661020,3.762,4052.4,4052.2,2.46878022]
[1754685661818,3.762,4052.4,4052.2,0.001]
[1754685662312,3.762,4052.3,4052.2,2.46878188]
[1754685663113,3.762,4052.3,4052.2,0.001]
[1754685663443,0.002,4052.8,4052.5,2.46761258]
[1754685663738,3.762,4052.7,4052.6,3.38514681]
[1754685664520,0.002,4052.8,4052.7,2.4674908]
[1754685664686,3.764,4052.8,4052.6,3.38512854]
[1754685665094,3.764,4052.8,4052.6,0.9176]
[1754685665322,3.764,4052.8,4052.6,0.4829]
[1754685665624,3.764,4052.8,4052.4,2.46765894]
[1754685665827,3.764,4052.8,4052.3,2.46772699]
[1754685665986,0.002,4052.8,4052.2,9.95582184]
[1754685666187,3.762,4052.7,4052.6,2.46755169]
[1754685666486,3.762,4052.7,4052.6,3.50835169]
[1754685668082,0.002,4052.8,4052.7,2.4674908]
[1754685668284,0.002,4052.8,4052.7,6.3850908]
[1754685668498,3.763,4052.8,4052.7,6.3850908]
[1754685670322,4.2202,4052.8,4052.7,3.0]
[1754685670526,4.7072,4052.8,4052.7,3.0]
[1754685670734,4.2202,4052.8,4052.7,3.0]
[1754685670908,3.763,4052.8,4052.7,5.4674908]
[1754685671838,3.763,4052.8,4052.7,3.0]
[1754685673533,4.2202,4052.8,4052.7,3.0]
[1754685673700,4.7072,4052.8,4052.5,2.46759083]
[1754685673902,4.7072,4052.8,4052.2,0.001]
[1754685673903,2.46761258,4052.5,4052.2,0.001]
[1754685674247,2.46791707,4052.0,4051.8,0.001]
[1754685674412,6.22891707,4052.0,4051.8,0.001]
[1754685674615,7.2168684,4052.0,4051.8,0.001]
[1754685674823,5.23595133,4052.0,4051.8,0.001]
[1754685676438,1.47495133,4052.0,4051.8,0.001]
[1754685676596,3.761,4052.0,4051.8,0.001]
[1754685683936,3.8842,4052.0,4051.8,0.001]
[1754685684802,0.1232,4052.0,4051.8,0.001]
[1754685685432,3.761,4052.0,4051.9,10.92710161]
[1754685685636,3.761,4052.0,4051.9,12.426232]
[1754685686939,3.761,4052.0,4051.9,1.64801016]
[1754685687139,3.761,4052.0,4051.9,2.12561016]
[1754685687518,3.761,4052.0,4051.9,2.59461016]
[1754685687840,3.761,4052.0,4051.9,2.12561016]
[1754685690529,0.1232,4052.5,4051.9,2.12561016]
[1754685690712,3.761,4052.4,4051.9,2.59461016]
[1754685691041,3.761,4052.4,4052.0,0.4776]
[1754685692637,0.1232,4052.5,4052.0,0.4776]
[1754685692840,3.761,4052.4,4052.0,0.4776]
[1754685694251,0.1232,4052.5,4051.9,1.64801016]
[1754685694644,3.761,4052.4,4051.9,1.64801016]
[1754685694952,3.761,4052.4,4051.9,2.12561016]
[1754685695157,3.761,4052.4,4051.9,1.64801016]
[1754685695455,3.761,4052.4,4052.0,0.9466]
[1754685696066,3.761,4052.4,4052.0,0.4776]
[1754685696350,3.761,4052.3,4052.1,0.4776]
[1754685696531,3.761,4052.3,4052.2,0.4776]
[1754685697833,0.1232,4052.5,4052.2,0.4776]
[1754685698035,3.761,4052.4,4052.2,0.4776]
[1754685701345,0.1232,4052.5,4052.2,0.4776]
[1754685701547,3.761,4052.4,4052.3,0.02467734]
[1754685701735,3.761,4052.4,4052.3,0.9466]
[1754685702351,3.761,4052.4,4052.3,0.4776]
[1754685702676,3.761,4052.4,4052.2,0.1232]
[1754685702879,3.761,4052.4,4052.3,0.4776]
[1754685704044,3.761,4052.4,4052.2,0.1232]
[1754685706482,0.1252,4052.8,4052.2,0.1232]
[1754685706655,3.761,4052.7,4052.6,9.83162184]
[1754685706852,3.761,4052.7,4052.6,10.77822184]
[1754685707064,0.002,4052.8,4052.7,3.0]
[1754685707245,0.002,4052.8,4052.7,3.9466]
[1754685707567,0.002,4052.8,4052.7,5.45994218]
[1754685710150,0.002,4052.8,4052.7,4.99094218]
[1754685710356,0.002,4052.8,4052.7,4.51334218]
[1754685710969,0.002,4052.8,4052.7,4.99094218]
[1754685711165,0.002,4052.8,4052.7,5.45994218]
[1754685712740,0.002,4052.8,4052.7,4.51334218]
[1754685712948,0.002,4052.8,4052.7,0.1232]
[1754685713147,0.9294,4052.8,4052.7,0.1232]
[1754685714550,0.4721,4052.8,4052.7,0.1232]
[1754685715246,0.9687,4052.8,4052.7,0.1232]
[1754685718268,0.002,4052.8,4052.7,0.1232]
[1754685718457,3.762,4052.8,4052.7,0.1232]
[1754685719241,4.6876,4052.8,4052.1,3.0]
[1754685719554,4.6876,4052.8,4052.0,4.30899999]
[1754685719555,0.9256,4052.7,4052.0,4.30899999]
[1754685719879,0.9256,4052.6,4052.1,3.1232]
[1754685720061,0.9256,4052.5,4052.1,3.1232]